{"text_format":"1","workbook":"xlsx","n_sheets":2,"sheets":["Opći uvjeti","Troškovnik"],"not_rendered":{"charts":0,"images":0,"macros":0,"external_links":0,"defined_names":5,"comments":0,"pivot_tables":0},"unopened":[],"bounds":{"document_bytes":16777216,"sheet_cells":100000,"rows_first":2000,"rows_last":500,"rows_between":2000,"halvings":0,"cell_chars":16384,"cell_head_chars":4096},"cells_cut":0,"cells_raw":0,"read":"whole","date_system":"1900"}

{"sheet":"Opći uvjeti","index":0,"n_rows":28,"n_cols":1,"rows_kept":28,"cut":false,"hidden":false,"merged":[]}
[]
["Opći uvjeti izvođenja radova"]
[]
["Ponuđač je dužan upoznati se s ponudbenom dokumentacijom te izvršiti pregled svih lokacija izvedbe radova, Izvođač je dužan pridržavati se svih važećih zakona i propisa iz područja gradnje, Zakona o zaštiti na radu, hrvatskih normi, \"Općih tehničkih uvjeta za radove na cestama\" (Zagreb, IGH, izdanje 2001. god.), Internih smjernica HAC-a. Svi radovi moraju se izvesti solidno i stručno prema važećim propisima i pravilima dobrog zanata."]
[]
["Od trenutka preuzimanja radova pa do primopredaje istih izvođač je odgovoran za stvari i osobe koje se nalaze unutar zone radova. U građevinski dnevnik se unose svi bitni podaci i događaji tijekom izvođenja radova (npr. meteorološke prilike, temperatura zraka i sl.), upisuju primjedbe projektanta, nalozi nadzornog inženjera i inspekcije. Tako registrirani zahtjevi obvezni su za Izvođača radova, s tim da je za svaku nepredviđenu višu radnju, kojom bi se povećalo ukupne troškove predviđene za izvođenje radova po ovom troškovniku, prethodno potrebna suglasnost investitora."]
[]
["Količine radova, koje nakon izvršenja čitavog posla nije moguće mjeriti neposrednom izmjerom treba po izvršenju pojedinog takvog rada preuzeti i ovjeriti nadzorni inženjer. Nadzorni inženjer i predstavnik izvođača radova unosit će u građevnu knjigu količine pojedinih takvih radova, s potrebnim skicama i izmjerama, te će svojim potpisima jamčiti za njihovu točnost. Samo tako utvrđeni radovi mogu se uzeti u obzir kod izrade privremenog ili konačnog obračuna radova."]
[]
["Radovi se izvode prema prometnom elaboratu, a u svim slučajevima potrebne izmjene ili dopune prometnog elaborata ili njegovih dijelova, odluku o tome donosit će sporazumno projektant, nadzorni inženjer, investitor i predstavnik izvođača radova, a tu svoju odluku unosit će u građevni dnevnik. Sve izmjene ili dopune prometnog elaborata, ili njegovih dijelova, za koje se po građevnom dnevniku ne može dokazati da su uslijedile po opisanom postupku, neće se obračunavati ni po privremenom ni po konačnom obračunu."]
[]
["U ovom troškovniku izložene cijene odnose se na jediničnu mjeru izvršenog rada. Prema tome, jedinične cijene obuhvaćaju sav rad, opremu, materijal, prijevoze, režiju gradilišta i uprave poduzeća, sva davanja te zaradu poduzeća. Sav montažni i sitni materijal je uključen i ne obračunava se zasebnim stavkama. Uključeni su sve vrste radova na izradi i montaži zaštitnih mjera i provizorija, sve vrste radova na montaži opreme.  "]
[]
["Jediničnim cijenama obuhvaćeno je osiguranje i ocjenjivanje kakvoće, tj. svi troškovi prethodnih i tekućih ispitivanja kako osnovnih materijala, tako i poluproizvoda, te definitivno dovršenih radova u skladu s važećim tehničkim propisima, pravilnicima i standardima i Općim tehničkim uvjetima investitora. Stavke troškovnika odnose se na definitivno dovršene radove, ispitane po kvaliteti i funkcionalnosti, te preuzete po nadzornoj službi Investitora, ako nije u opisu izričito drukčije određeno."]
[]
["Izvođač je prije početka radova dužan detektirati eventualne postojeće instalacije, te poduzeti sve potrebne mjere kako bi se spriječilo oštećenje istih."]
[]
["U slučaju oštećenja istih do kojeg je došlo uslijed nepažljivog izvođenja radova, te nepridržavanja gore navedenog uvjetaIzvođač će morati izvršiti žurnu sanaciju istih na svoj račun."]
[]
["Obveza Izvođača je izrada elaborata fotodokumentacije postavljene prometne opreme."]
[]
["Izvođač je radove dužan izvoditi u koordinaciji s odgovornom osobom Naručitelja te nadležnim Tehničkim jedinicama održavanja HAC-a."]
[]
["Sav materijal i oprema, koju izvođač dobavlja i ugrađuje, mora imati isprave o sukladnosti, u skladu s važećim zakonima i propisima iz područja gradnje (tvornička ispitivanja i atesti, certifikati sukladnosti i sl.) i uvjerenja o kakvoći u skladu s važećim zakonima i propisima (na hrvatskom jeziku)."]
[]
["Izvođač je dužan gradilište održavati čistim, a na kraju radova treba izvesti detaljno čišćenje.                                                                                                                                  "]
[]
["Izvođač je u okviru ugovorene cijene dužan izvršiti koordinaciju radova svih kooperanata tako da omogući kontinuirano odvijanje posla i zaštitu već izvedenih radova. Sva oštećenja nastala na već izvedenim radovima izvođač je dužan otkloniti o vlastitom trošku. Izvođač je dužan zaštititi postojeći teren s pripadajućom vegetacijom od oštećivanja tijekom izvođenja radova. Ako se površine postojećeg terena s pripadajućom vegetacijom oštete tijekom izvođenja radova, izvođač je dužan izvršiti biološku sanaciju iste, i to o svom trošku."]

{"sheet":"Troškovnik","index":1,"n_rows":48,"n_cols":6,"rows_kept":48,"cut":false,"hidden":false,"merged":[[0,0,0,5]]}
["Zamjena smjerokaznih oznaka („snježnih LED markera\") K02-2 za razdvajanje prometnih traka u portalnim zonama tunela Mala Kapela i Sveti Rok na autocesti A1 i tunela Vršek na autocesti A6"]
["Rb","O P I S","Jed. mjere","Količina","Jed. cijena","Ukupno"]
[null,"Stavkama troškovnika je obuhvaćen sav potreban rad, materijal i alat za izvođenje radova na demontaži kao i utovar, istovar i prijevoz na deponiju Investitora do 20 km."]
[null,"Svi radovi, usluge i oprema izvode se, isporučuju, montiraju, ili na neki drugi način stavljaju u funkciju u skladu s Općim tehničkim uvjetima za radove na cestama."]
[null,"Oprema, radovi, montaža ili neke druge radnje i postupci opisani ovim troškovnicima moraju udovoljavati zahtjevima hrvatskih propisa, (zakona, pravilnika, normi, preporuka i ostalih pozitivnih propisa i akata)."]
[null,"U stavkama troškovnika osim dobave,  isporuke i montaže podrazumjeva se da sva oprema prilikom dobave i isporuke mora biti osigurana od strane isporučitelja, do trenutka preuzimanja od strane Investitora."]
["I","PROMETNA SIGNALIZACIJA I OPREMA"]
[]
[1,"PROMETNA SIGNALIZACIJA I OPREMA"]
[]
["1.1","Snježni LED markeri za označavanje sredine kolnika ispred i u tunelu,  postavljaju se između isprekidane razdjelne crte na jednosmjernom kolniku autoceste - dobava, isporuka i potpuna ugradnja, uključivo označavanje pozicija, rezanje/bušenje kolničke konstrukcije, izradu ležišta za marker, uklanjanje i odvoz viška materijala, ugradnju markera, spajanje na električni vod te završnu sanaciju kolničke površine Dimenzije markera su min.f130 x max. 95 mm. Markeri se ugrađuju 3 mm ispod razine kolnika radi zaštite od mehaničkog utjecaja opreme za čišćenje snijega. Kućište markera treba biti izveden od aluminija i polycarbonata s obostrano ugrađenim LED bijele boje, za vanjsku upotrebu, otporno na udarce i sol, mora biti osigurana otpornost na pritisak sile od min. 400kN; IP 69. Markeri se postavljaju na međusobnom razmaku od 12 m - 18 m, na dužini od 100 m ispred ulaza u tunel i 100 m u samom tunelu te 100 m prije izlaza iz tunela i 100 m po izlasku iz tunela. Markeri se opskrbljuju električnom energijom i spojeni su na kontrolnu jedinicu za napajanje koja je smještena u upravljački ormar. Dovodi od električne žice moraju biti izolirani sa silikonskom gumom.\nNapomena: prostor između LED markera i okolnog asfalta, prilikom ugradnje, a za potrebe dodatnog učvršćenja, mora se ispuniti polimer-cementnim sanacijskim mortom klase R4 (HRN 1504-3:2005) i pri tome treba koristiti vezni sloj od epoxi smole koja ima prionjivost za okolni beton i asfalt veću od 2,5 MPa. \nStavka uključuje sve potrebno za potpunu i funkcionalnu ugradnju LED markera, uključujući izradu ležišta u kolniku i sanaciju kolničke konstrukcije.","komplet",210,null,{"$f":"D11*E11","v":0}]
[]
["1.2","Dobava i isporuka energetskog kabela H07RN-F 2x1,5 mm²/Pc16 - napajanje LED-markera u kolniku.","m'",2500,null,{"$f":"D13*E13","v":0}]
[]
["1.3","Dobava i isporuka energetskog kabela BXOZO-HFTG 3x2,5 mm² klasa 5.","m'",1200,null,{"$f":"D15*E15","v":0}]
[]
["1.4","Upravljački ormarić dimenzija 300x400x120mm, dvostrukom izolacijom, nehrđajućim šarkama, dvije brave, IP66.\nDobava, isporuka i montaža na vanjskom prostoru portala tunela.","komplet",12,null,{"$f":"E17*D17","v":0}]
[]
["1.5","Kontrolna jedinica za napajanje i kontrolu LED markera, s priključkom na 220V/50Hz, izlaz 24V(12V), smještena u upravljački ormar. Jedan uređaj pokriva između 250 i 500 m dugu liniju LED-markera. Dobava, isporuka i montaža.","komplet",12,null,{"$f":"E19*D19","v":0}]
[]
["1.6","Dobava, isporuka i ugradnja sonde za kontrolu intenziteta LED markera na ulazu tunela s pripadajućom sondom za mjerenje intenziteta. Stavka uključuje montažu sonde na obod portala tunela s vanjske strane sa svim svojim pripadnim potrošnim materijalnom i potrebnim kabelima.","komplet",12,null,{"$f":"E21*D21","v":0}]
[]
["1.7","Dobava, isporuka i postava vatrootporne INOX niklovane zaštitne cijevi fi 25mm sa obujmicama i tiplama E90, tip kao OBO tip SM 25 FT ili jednakovrijedno.","m'",50,null,{"$f":"D23*E23","v":0}]
[]
["1.8","Dobava, isporuka i montaža vatrootpornih razdjelnih kutija tip kao 'FireBox' B 160 E ili jednakovrijedno. Kutije postavljene u kabelskom kanalu.","kom",12,null,{"$f":"E25*D25","v":0}]
[]
[null,"PROMETNA SIGNALIZACIJA I OPREMA UKUPNO",null,null,null,{"$f":"SUM(F11:F26)","v":0}]
[]
[2,"RADOVI NA UGRADNJI PROMETNE SIGNALIZACIJE I OPREME"]
[]
["2.1","Demontaža postojećih bijelih LED markera iz središnjeg dijela kolnika u tunelskoj cijevi. Demontaža zajedno s kućištem, kabelom za napajanje i upravljačkim sustavom. Komplet s čišćenjem i sanacijom kolničke površine nakon uklanjanja postojećeg markera.","komplet",160,null,{"$f":"E31*D31","v":0}]
[]
["2.2","Strojna izrada utora u asfaltu za kabel LED snježnih markera\nStavka uključuje:\n- označavanje linije zarezivanja\n- strojno zarezivanje kolnika, širine 2 cm i visine 5 cm \n- ispuhivanje utora komprimiranim zrakom","m'",2500,null,{"$f":"D33*E33","v":0}]
[]
["2.3","Polaganje napojnog kabela LED markera za ugradnju u asfalt u izrezane utore u asfaltu, zalijevanje utora električnih instalacija. Stavka uključuje: nanošenje prednamaza i zalijevanje zaljevnom masom, nepropusnom i otpornom na atmosferilije.","m'",{"$f":"D13","v":2500},null,{"$f":"D35*E35","v":0}]
[]
["2.4","Polaganje napojnog kabela između ormara elektro razdjelnika rasvjete i upravljačkog ormara LED markera. Stavka uključuje pažljivi rad na hodnoj stazi (privremenu demontažu ploča hodne staze tunela, sav potreban pričvrsni pribor, postavljanje ploča hodne staze u prvobitno stanje, odnosno sve za potpunu izvedbu stavke.","m'",{"$f":"D15","v":1200},null,{"$f":"D37*E37","v":0}]
[]
["2.5","Sanacija kolnika i ispunjavanje prostora ugradnje starih LED markera. Stavka uključuje dobavu, spravljanje, nanošenje i ugradnju smjese polimer-cementnog sanacijskog morta, odnosno sve za sanaciju mjesta i potpuno dovršenje stavke.","komplet",1,null,{"$f":"D39*E39","v":0}]
[]
[null,"RADOVI NA UGRADNJI PROMETNE SIGNALIZACIJE I OPREME UKUPNO",null,null,null,{"$f":"SUM(F31:F40)","v":0}]
[]
["                             ","REKAPITULACIJA:"]
["1.","PROMETNA SIGNALIZACIJA I OPREMA UKUPNO:",null,null,null,{"$f":"F27","v":0}]
["2.","RADOVI NA UGRADNJI PROMETNE SIGNALIZACIJE I OPREME UKUPNO:",null,null,null,{"$f":"F41","v":0}]
[null,"UKUPNO",null,null,null,{"$f":"F44+F45","v":0}]
[null,"PDV (25%)",null,null,null,{"$f":"F46*0.25","v":0}]
[null,"SVEUKUPNO",null,null,null,{"$f":"F46+F47","v":0}]